[Event "Slovakian ECo-C Extraliga 2024-25"]
[Site "Slovakia"]
[Date "2024.11.23"]
[Round "1.8"]
[White "Kasperek, Ryszard"]
[Black "Hecko, Dusan"]
[Result "1-0"]
[ECO "B14"]
[WhiteElo "2084"]
[BlackElo "1978"]
[Annotator "NA RC"]
[PlyCount "57"]
[EventDate "2024.09.12"]
[EventType "team-tourn"]
[EventCountry "SVK"]
[SourceTitle "playchess.com"]
[Source "ChessBase"]
[SourceQuality "1"]
[TimeControl "5400+30"]

1. e4 {[%emt 0:00:04]} c6 {[%emt 0:00:59]} 2. d4 {[%emt 0:00:17]} d5 {[%emt 0:00:13]} 3. exd5 {[%emt 0:01:04]} cxd5 {[%emt 0:00:14]} 4. c4 {[%emt 0:00:06]} Nf6 {[%emt 0:00:33]} 5. Nc3 {[%emt 0:00:05]} Nc6 {[%emt 0:02:35]} 6. Bg5 {[%emt 0:00:34]} e6 {[%emt 0:11:37]} 7. Nf3 {[%emt 0:00:51]} Be7 {[%emt 0:01:26]} 8. c5 {[%emt 0:00:56]} O-O {[%emt 0:00:57]} 9. Bb5 {[%emt 0:00:08]} Bd7 {[%emt 0:03:51]} 10. O-O {[%emt 0:05:25]} h6 {[%emt 0:15:46]} 11. Bf4 {[%emt 0:09:09]} Be8 {[%emt 0:01:32]} 12. Re1 {[%emt 0:10:00]} Nh7 {[%emt 0:05:09]} 13. Rc1 {[%emt 0:10:41]} Ng5 {[%emt 0:02:49]} 14. Ne5 {[%emt 0:02:55]} f6 {[%emt 0:12:00]} 15. Nxc6 {[%emt 0:01:42]} bxc6 {[%emt 0:00:09]} 16. Ba6 {[%emt 0:04:44]} Qd7 {[%emt 0:00:43]} 17. b4 {[%emt 0:01:02]} Bf7 {[%emt 0:10:49]} 18. h4 {[%emt 0:22:13]} Ne4 {[%emt 0:01:23]} 19. b5 {[%emt 0:07:30]} Nxc3 {[%emt 0:02:41]} 20. Rxc3 {[%emt 0:00:19]} g5 {[%emt 0:01:55]} 21. Bg3 {[%emt 0:02:00]} f5 {[%emt 0:00:40]} 22. hxg5 {[%emt 0:00:15]} hxg5 {[%emt 0:00:15]} 23. Be5 {[%emt 0:00:30]} Bg6 {[%emt 0:00:38]} 24. Qb3 {[%emt 0:02:16]} Bf6 {[%emt 0:01:59]} 25. bxc6 {[%emt 0:00:47]} Qxc6 {[%emt 0:00:02]} 26. Bb7 {[%emt 0:00:37]} Qe8 {[%emt 0:00:32]} 27. Bxf6 {[%emt 0:01:41]} Rxf6 {[%emt 0:00:03]} 28. Bxa8 {[%emt 0:00:05]} Qxa8 {[%emt 0:00:09]} 29. c6 {[%emt 0:00:07]} 1-0